[Event "97th Argentine Championship 2022"]
[Site "Barichole"]
[Date "2022.12.03"]
[Round "3.5"]
[White "Krysa, Leandro"]
[Black "Sorin, Ariel"]
[Result "1-0"]
[ECO "E61"]
[WhiteElo "2524"]
[BlackElo "2363"]
[Annotator "TA"]
[PlyCount "61"]
[EventDate "2022.12.01"]
[EventType "tourn"]
[EventCountry "ARG"]
[SourceTitle "playchess.com"]
[Source "ChessBase"]
[SourceQuality "1"]
[TimeControl "40/5400+30:1800+30"]

{[%evp 15,61,2,32,21,23,21,32,35,39,29,88,77,93,60,90,86,72,79,106,48,120,114,110,136,150,139,156,156,254,179,278,227,409,367,885,897,1152,1110,1032,1020,1150,1122,1152,1127,1116,969,947,926]} 1. d4 {[%emt 0:00:03]} Nf6 {[%emt 0:00:51]} 2. Nf3 {[%emt 0:00:31]} g6 {[%emt 0:00:08]} 3. c4 {[%emt 0:00:20]} Bg7 {[%emt 0:00:06]} 4. Nc3 {[%emt 0:00:20]} d6 {[%emt 0:00:20]} 5. Bg5 {[%emt 0:00:54]} h6 {[%emt 0:03:43]} 6. Bh4 {[%emt 0:00:46]} g5 {[%emt 0:07:53]} 7. Bg3 {[%emt 0:00:08]} Nh5 {[%emt 0:00:04]} 8. e3 {[%emt 0:01:40]} Nd7 {[%emt 0:04:14]} 9. Bd3 {[%emt 0:01:22] E61: King's Indian: Early deviations for White, including Smyslov System.} c5 {[%emt 0:05:32]} 10. O-O {[%emt 0:11:18] [#]} a6 $146 {[%emt 0:13:27]} ({Predecessor:} 10... Nxg3 11. hxg3 O-O 12. Qc2 e6 13. Rad1 Qe7 14. Rd2 Nf6 15. dxc5 dxc5 16. Rfd1 b6 {1-0 (36) Neverov,V (2455)-Fule,S (2280) Budapest 2022}) 11. Bc2 {[%emt 0:18:46] White is slightly better.} Qa5 {[%emt 0:03:12]} 12. a3 {[%emt 0:07:33][%cal Ob2b4]} Rb8 {[%emt 0:05:31]} (12... Nxg3 $11 13. fxg3 (13. hxg3 Nf6 $14) 13... Nf6) 13. b4 $16 {[%emt 0:05:49] Black is now going downhill.} Qd8 {[%emt 0:00:22]} 14. Rb1 {[%emt 0:00:52]} b6 {[%emt 0:03:02]} 15. Qd3 $36 {[%emt 0:04:09][%mdl 2048] Keeping Black busy.} Bb7 {[%emt 0:04:08]} 16. Nd2 {[%emt 0:05:28][%cal Bf3d2,Bd2e4,Be4c3,Bc3b5,Bb5d6,Bd6f5][%mdl 32]} Bc6 {[%emt 0:07:31]} 17. a4 {[%emt 0:07:20]} ({White should play} 17. Nde4 $16) 17... cxb4 {[%emt 0:08:37]} (17... Nxg3 $14 18. fxg3 cxb4 19. Rxb4 e6) 18. Rxb4 {[%emt 0:00:41]} Qc7 {[%emt 0:01:09]} 19. Nd5 {[%emt 0:06:41]} Qd8 {[%emt 0:07:26]} 20. Ne4 {[%emt 0:02:39][%cal Og3d6] Against b5. White is more active.} Nxg3 {[%emt 0:01:38]} 21. fxg3 {[%emt 0:09:15]} b5 {[%emt 0:03:45]} (21... Kf8 $16 22. Rbb1 a5) 22. axb5 {[%emt 0:07:35]} axb5 {[%emt 0:00:12]} (22... Bxd5 $142 23. cxd5 Qa5) 23. Nec3 {[%emt 0:03:21]} e6 $2 {[%emt 0:09:18]} (23... Bxd5 {is a better defense.} 24. Nxd5 Nf6) 24. Qg6 $18 {[%emt 0:00:33][%csl Gf1][%cal Rg6f7] [#]} Rf8 {[%emt 0:02:42]} (24... Bf6 25. Nxf6+ Nxf6) 25. Qxg7 {[%emt 0:00:49] White is clearly winning.} exd5 {[%emt 0:00:05]} 26. cxd5 {[%emt 0:00:31]} Ba8 {[%emt 0:00:24]} 27. Nxb5 {[%emt 0:00:30]} Bxd5 {[%emt 0:02:28]} 28. Nxd6+ {[%emt 0:00:35]} Ke7 {[%emt 0:00:04]} 29. Nf5+ {[%emt 0:00:18]} Ke8 {[%emt 0:00:04]} 30. Rxb8 {[%emt 0:00:37]} Qxb8 {[%emt 0:00:08]} 31. Ba4 {[%emt 0:01:01] Weighted Error Value: White=0.20 (precise) /Black=0.46} 1-0

[Event "97th Argentine Championship 2022"]
[Site "Barichole"]
[Date "2022.12.03"]
[Round "3.6"]
[White "Gaitan, Juan Manuel"]
[Black "Perez Ponsa, Federico"]
[Result "1/2-1/2"]
[ECO "E11"]
[WhiteElo "2347"]
[BlackElo "2538"]
[Annotator "TA"]
[PlyCount "41"]
[EventDate "2022.12.01"]
[EventType "tourn"]
[EventCountry "ARG"]
[SourceTitle "playchess.com"]
[Source "ChessBase"]
[SourceQuality "1"]
[TimeControl "40/5400+30:1800+30"]

{[%evp 12,41,1,16,37,37,31,36,51,16,12,14,20,10,4,0,0,0,26,18,25,19,84,4,53,51,49,0,42,0,58,0]} 1. d4 {[%emt 1:31:00]} Nf6 {[%emt 0:00:24]} 2. c4 {[%emt 0:00:00]} e6 {[%emt 0:00:33]} 3. Nf3 {[%emt 0:00:00]} d5 {[%emt 0:01:17]} 4. g3 {[%emt 0:00:00]} Bb4+ {[%emt 0:00:51]} 5. Bd2 {[%emt 0:00:00]} a5 {[%emt 0:00:21]} 6. Qc2 {[%emt 0:00:00]} O-O {[%emt 0:00:36]} 7. Bg2 {[%emt 0:00:00]} c5 {[%emt 0:01:55] E11: Bogo-Indian.} 8. cxd5 $1 {[%emt 0:00:00] The main line 8.cxd5 scores better than 8.dxc5.} cxd4 {[%emt 0:00:10]} 9. Nxd4 {[%emt 0:00:00]} Qb6 {[%emt 0:00:26]} 10. Bxb4 {[%emt 0:00:00]} (10. e3 $5 {[%cal Rd5e6]}) 10... axb4 {[%emt 0:02:27]} 11. e3 {[%emt 0:00:00]} exd5 {[%emt 0:00:51]} 12. O-O {[%emt 0:00:00]} Nc6 {[%emt 0:01:07]} 13. Nxc6 {[%emt 0:00:00]} bxc6 {[%emt 0:16:30]} 14. Nd2 {[%emt 0:00:00] [#] Inhibits b3.} Re8 $146 {[%emt 0:19:36]} ({Predecessor:} 14... Bd7 15. Nb3 Rfb8 16. Rfc1 h5 17. Nc5 Be8 18. a4 bxa3 19. bxa3 Ra5 20. Bh3 Qa7 {0-1 (39) Hossain,E (2426)-Narayanan,S (2618) Dhaka 2021}) 15. Rfc1 {[%emt 0:00:00]} Bd7 {[%emt 0:00:39]} 16. Nb3 {[%emt 0:00:00]} Ne4 {[%emt 0:03:37] [#]} (16... g6 $11 {remains equal.}) 17. Qd3 {[%emt 0:00:00]} ({White should play} 17. Bxe4 $1 $16 dxe4 18. a4) 17... Bf5 {[%emt 0:10:05]} (17... f5 $11) 18. Nd4 $14 {[%emt 0:00:00]} Bd7 {[%emt 0:00:09]} 19. Nb3 {[%emt 0:00:00] Prevents Nc5.} Bf5 {[%emt 0:00:09][%cal Oe4g3]} 20. Nd4 {[%emt 0:00:00]} Bd7 {[%emt 0:00:10]} 21. Nb3 {[%emt 0:00:00] Weighted Error Value: White=0.20 (precise) /Black=0.19 (very precise)} (21. Bxe4 $14 dxe4 22. Qc4) 1/2-1/2

[Event "97th Argentine Championship 2022"]
[Site "Barichole"]
[Date "2022.12.04"]
[Round "4.1"]
[White "Acosta, Pablo Ismael"]
[Black "Mareco, Sandro"]
[Result "1/2-1/2"]
[ECO "E48"]
[WhiteElo "2461"]
[BlackElo "2619"]
[Annotator "TA"]
[PlyCount "77"]
[EventDate "2022.12.01"]
[EventType "tourn"]
[EventCountry "ARG"]
[SourceTitle "playchess.com"]
[Source "ChessBase"]
[SourceQuality "1"]
[TimeControl "40/5400+30:1800+30"]

{[%evp 11,77,-9,10,8,19,6,10,0,19,13,45,31,15,-6,1,-16,0,-52,-51,-65,-53,-53,-62,-61,-64,-80,-80,-123,-130,-127,-120,-122,-101,-107,-109,-103,0,-104,-78,-89,-93,-102,-73,-85,-53,-54,-58,-72,-58,-74,-73,-74,-74,-73,-51,-68,-53,-57,-49,-62,0,0,0,0,40,21,38,13]} 1. d4 {[%emt 0:00:26]} Nf6 {[%emt 0:00:41]} 2. c4 {[%emt 0:00:16]} e6 {[%emt 0:00:04]} 3. Nc3 {[%emt 0:00:04]} Bb4 {[%emt 0:00:05]} 4. e3 {[%emt 0:00:12]} O-O {[%emt 0:00:06]} 5. Bd3 {[%emt 0:00:07]} d5 {[%emt 0:00:05]} 6. Nge2 {[%emt 0:00:10]} b6 {[%emt 0:00:21]} 7. a3 {[%emt 0:03:12] E48: Nimzo-Indian: Rubinstein: 5 Bd3 d5 including 6 Ne2, but excluding 6 a3.} Be7 {[%emt 0:00:12]} 8. cxd5 {[%emt 0:02:14]} exd5 {[%emt 0:00:06]} 9. O-O {[%emt 0:01:02] The position is equal.} Bb7 {[%emt 0:00:14]} 10. b4 {[%emt 0:09:45]} Nbd7 {[%emt 0:12:37][%cal Bb8d7,Bd7b6,Bb6c4][%mdl 32]} 11. Ng3 {[%emt 0:02:38]} Re8 {[%emt 0:01:05]} 12. Bb2 {[%emt 0:00:51]} a6 {[%emt 0:01:30]} 13. Rc1 $1 {[%emt 0:10:46]} Bf8 {[%emt 0:09:53]} 14. Bb1 {[%emt 0:04:00]} ({Better is} 14. Re1 $11) 14... b5 $15 {[%emt 0:03:04] [#]} 15. Re1 $146 {[%emt 0:07:53]} ({Predecessor:} 15. Qc2 Nb6 16. Nce2 Nc4 17. Nf4 g6 18. Nd3 Bd6 19. Rfe1 Ng4 20. Nf4 Qh4 21. Nh3 {0-1 (63) Wang,D (2217)-Wang,J (2384) Xinghua 2014}) 15... Nb6 {[%emt 0:02:00]} 16. Qb3 {[%emt 0:05:16]} Nc4 {[%emt 0:16:45]} 17. Rcd1 {[%emt 0:03:16]} h5 {[%emt 0:18:21]} 18. Nf1 {[%emt 0:03:11]} a5 {[%emt 0:04:49]} 19. Bc1 {[%emt 0:06:04]} axb4 {[%emt 0:00:32]} 20. axb4 {[%emt 0:00:05]} Qd6 {[%emt 0:01:41]} 21. Na2 {[%emt 0:05:08]} g6 {[%emt 0:00:05]} 22. f3 {[%emt 0:04:49]} Qa6 {[%emt 0:09:38]} 23. Nc3 {[%emt 0:01:38]} Qd6 {[%emt 0:00:07]} 24. Na2 {[%emt 0:02:13]} Bh6 {[%emt 0:06:02]} 25. Nc3 {[%emt 0:04:01]} Qb6 {[%emt 0:00:05]} 26. Bd3 {[%emt 0:01:01]} Re6 {[%emt 0:01:40]} 27. Qb1 {[%emt 0:01:42]} Rae8 {[%emt 0:00:12]} 28. Bxc4 {[%emt 0:01:26]} bxc4 {[%emt 0:00:52]} ({But not} 28... dxc4 29. e4 Bg7 30. Be3 Nxe4 31. fxe4 Bxe4 32. Qc1 $14) 29. b5 {[%emt 0:01:54]} c6 {[%emt 0:00:34]} 30. Re2 {[%emt 0:03:53]} cxb5 {[%emt 0:00:29] aiming for ...b4.} (30... Ra8 {looks sharper.} 31. Rb2 c5 32. dxc5 Qxc5 33. Ra2 Ree8) 31. Rb2 {[%emt 0:00:05] Inhibits b4.} Bc6 {[%emt 0:02:08]} 32. Nxb5 {[%emt 0:00:05]} Qd8 {[%emt 0:00:28] Prevents Nd6.} 33. Nc3 {[%emt 0:00:34][%cal Oe3e4]} Bf8 {[%emt 0:01:06] Prevents e4.} 34. Ra2 {[%emt 0:01:36]} R6e7 {[%emt 0:00:41]} 35. Bd2 {[%emt 0:02:08]} Bd7 {[%emt 0:00:22]} (35... Rb7 $15 36. Qc2 Rb3) 36. e4 $11 {[%emt 0:02:18]} dxe4 {[%emt 0:00:18]} 37. Bg5 {[%emt 0:00:05]} Re6 {[%emt 0:00:10]} (37... Bg7 $5 {[%cal Re4f3]} 38. fxe4 Bg4 $11) 38. fxe4 {[%emt 0:05:01]} Qb6 {[%emt 0:00:28] [#] Prevents e5. Threatens to win with ...Qxb1.} 39. Qxb6 {[%emt 0:01:06] Weighted Error Value: White=0.08 (flawless) /Black=0.16 (very precise)} (39. e5 $5 {[%cal Rg5f6]} Qxb1 40. Rxb1 $16) 1/2-1/2

[Event "97th Argentine Championship 2022"]
[Site "Barichole"]
[Date "2022.12.04"]
[Round "4.2"]
[White "Perez Ponsa, Federico"]
[Black "Krysa, Leandro"]
[Result "1/2-1/2"]
[ECO "C88"]
[WhiteElo "2538"]
[BlackElo "2524"]
[Annotator "TA"]
[PlyCount "70"]
[EventDate "2022.12.01"]
[EventType "tourn"]
[EventCountry "ARG"]
[SourceTitle "playchess.com"]
[Source "ChessBase"]
[SourceQuality "1"]
[TimeControl "40/5400+30:1800+30"]

{[%evp 19,70,26,18,14,6,22,27,25,26,17,26,0,0,0,0,0,10,0,0,0,0,0,0,0,0,-12,0,-14,-27,-44,-54,-53,-25,-25,-31,-33,-20,-26,-25,-34,-24,-35,-25,-58,-52,-52,-52,-52,-28,-26,20,-49,-51]} 1. e4 {[%emt 0:00:09]} e5 {[%emt 0:00:34]} 2. Nf3 {[%emt 0:00:06]} Nc6 {[%emt 0:00:09]} 3. Bb5 {[%emt 0:00:08][%cal Bf1b5,Bb5a4,Ba4b3][%mdl 32]} a6 {[%emt 0:00:19]} 4. Ba4 {[%emt 0:01:08]} Nf6 {[%emt 0:00:51]} 5. O-O {[%emt 0:00:07]} Be7 {[%emt 0:00:18]} 6. Re1 {[%emt 0:00:06]} b5 {[%emt 0:00:14]} 7. Bb3 {[%emt 0:00:06]} O-O {[%emt 0:00:23]} 8. a4 {[%emt 0:00:07]} Bb7 {[%emt 0:00:29]} 9. d3 {[%emt 0:00:29]} Re8 {[%emt 0:00:30]} 10. h3 {[%emt 0:01:34]} h6 {[%emt 0:04:08]} 11. Nc3 {[%emt 0:05:32] C88: Closed Ruy Lopez: Anti-Marshall Systems.} b4 {[%emt 0:01:05]} 12. Nd5 {[%emt 0:00:43]} Na5 {[%emt 0:01:10]} 13. Nxf6+ {[%emt 0:02:00] White has an edge.} ({Reject} 13. Nxe5 Nxb3 14. cxb3 Nxd5 15. exd5 Bxd5 $15) 13... Bxf6 {[%emt 0:00:10]} 14. Ba2 {[%emt 0:00:05]} d5 {[%emt 0:02:17]} 15. Bd2 {[%emt 0:03:28]} c5 {[%emt 0:00:52][%cal Bc7c5,Bc5c4][%mdl 32]} 16. Nh2 {[%emt 0:08:51]} dxe4 {[%emt 0:00:58]} 17. dxe4 {[%emt 0:00:42] [#]} Be7 $146 {[%emt 0:01:28]} ({Predecessor:} 17... Bg5 18. Bxg5 Qxg5 19. Bd5 Rad8 20. Qf3 Bxd5 21. exd5 e4 22. Rxe4 Rxe4 23. Qxe4 Qxd5 24. Qxd5 Rxd5 {½-½ (30) Tapie Amione,P (2241)-Perez Rodriguez,L (2324) Mexico City 2022}) 18. Ng4 {[%emt 0:09:59]} (18. Qh5 {looks sharper.} c4 19. Rad1 Qb6 20. Ng4) 18... c4 $1 {[%emt 0:16:45]} 19. Qe2 {[%emt 0:09:01][%cal Od2h6]} Qd6 {[%emt 0:35:09]} 20. Rad1 {[%emt 0:08:26][%cal Od2h6]} Qe6 {[%emt 0:02:10]} 21. c3 {[%emt 0:18:04]} b3 {[%emt 0:02:45]} 22. Bb1 {[%emt 0:00:31]} Bc5 {[%emt 0:07:23]} 23. Bc1 {[%emt 0:13:42][%cal Od1d5]} Rad8 {[%emt 0:02:27] Against Rd5} 24. Rxd8 {[%emt 0:01:24]} Rxd8 {[%emt 0:00:08]} 25. Kh2 {[%emt 0:00:15]} Nc6 {[%emt 0:06:25]} 26. Ne3 {[%emt 0:03:01]} Bxe3 {[%emt 0:03:23]} 27. Bxe3 {[%emt 0:14:16]} Nb8 {[%emt 0:02:28]} 28. a5 {[%emt 0:00:00]} Nc6 {[%emt 0:03:39]} 29. Bb6 {[%emt 0:00:00]} Rd7 {[%emt 0:00:35]} 30. Rd1 {[%emt 0:00:00]} Nb8 {[%emt 0:01:55]} 31. f3 {[%emt 0:00:00]} Rxd1 {[%emt 0:02:02]} 32. Qxd1 {[%emt 0:00:00] [#] Hoping for Qd8+.} Nd7 {[%emt 0:00:09]} 33. Bc7 {[%emt 0:00:00]} Qc6 {[%emt 0:02:14]} 34. Bd6 {[%emt 0:00:00]} f6 {[%emt 0:00:36]} (34... Qc8 $142) 35. f4 {[%emt 0:00:10]} (35. Qd5+ $1 $11 Kh8 36. Kg3) 35... exf4 {[%emt 0:00:42] Weighted Error Value: White=0.09 (flawless) /Black=0.06 (flawless)} 1/2-1/2

[Event "97th Argentine Championship 2022"]
[Site "Barichole"]
[Date "2022.12.04"]
[Round "4.3"]
[White "Flores, Diego"]
[Black "Peralta, Fernando"]
[Result "1-0"]
[ECO "E12"]
[WhiteElo "2547"]
[BlackElo "2587"]
[Annotator "TA"]
[PlyCount "51"]
[EventDate "2022.12.01"]
[EventType "tourn"]
[EventCountry "ARG"]
[SourceTitle "playchess.com"]
[Source "ChessBase"]
[SourceQuality "1"]
[TimeControl "40/5400+30:1800+30"]

{[%evp 11,51,0,-2,0,0,-8,-1,-13,-5,-12,-12,-27,-29,-37,-19,-47,13,18,12,20,33,0,14,25,60,51,93,85,81,81,197,107,196,183,225,249,249,205,1043,134,1024,1004]} 1. Nf3 {[%emt 0:00:30]} Nf6 {[%emt 0:00:17]} 2. c4 {[%emt 0:00:47]} b6 {[%emt 0:01:40]} 3. Nc3 {[%emt 0:00:47]} Bb7 {[%emt 0:00:10]} 4. d4 {[%emt 0:00:34]} e6 {[%emt 0:00:13]} 5. Bg5 {[%emt 0:02:37]} h6 {[%emt 0:01:56]} 6. Bxf6 {[%emt 0:06:45]} Qxf6 {[%emt 0:00:16]} 7. a3 {[%emt 0:03:00] E12: Queen's Indian: Unusual White 4th moves, 4 a3, 4 Nc3 Bb7 5 a3 and 4 Nc3 Bb7 .} g5 {[%emt 0:10:52]} 8. e3 {[%emt 0:01:20]} Bg7 {[%emt 0:01:02]} 9. Bd3 {[%emt 0:07:29] [#] The position is equal.} Nc6 $146 {[%emt 0:16:03]} ({Predecessor:} 9... Qe7 10. Be4 c6 11. g4 h5 12. gxh5 f5 13. Bc2 g4 14. Ne5 Bxe5 15. dxe5 c5 16. e4 Rxh5 17. Nb5 Kd8 18. Nd6 Kc7 19. Nb5+ Kd8 20. Nd6 Kc7 21. Nb5+ {½-½ (21) Weissenbeck,M (2271)-Knoll,H (2356) Austria 2012}) 10. Qe2 {[%emt 0:21:44]} Qe7 {[%emt 0:02:01]} 11. O-O-O {[%emt 0:02:53]} O-O-O {[%emt 0:21:56]} 12. Kb1 {[%emt 0:02:57]} Kb8 {[%emt 0:01:34]} 13. Rc1 {[%emt 0:02:50][%cal Oc4c5]} d5 {[%emt 0:11:49]} (13... d6 $15) 14. cxd5 $11 {[%emt 0:03:52]} exd5 {[%emt 0:00:04]} 15. Ba6 {[%emt 0:02:11]} Qe6 {[%emt 0:06:02]} 16. Nd2 {[%emt 0:06:40]} Ne7 {[%emt 0:00:53]} 17. Rc2 {[%emt 0:06:41]} Ba8 {[%emt 0:05:36]} 18. Rhc1 {[%emt 0:03:50]} f5 {[%emt 0:02:43]} 19. Na2 {[%emt 0:01:06][%cal Bc3a2,Ba2b4,Bb4a6][%mdl 32]} c6 {[%emt 0:03:52]} 20. Nb4 {[%emt 0:00:39]} Qd6 {[%emt 0:04:10]} (20... f4 $16) 21. Nb3 {[%emt 0:01:53]} (21. Bb5 $18) 21... Rd7 {[%emt 0:01:16] [#]} (21... Rhf8 $16) 22. Bb5 $1 $18 {[%emt 0:00:55][%cal Rb5c6][%mdl 512]} Rc8 {[%emt 0:01:58]} (22... Qxh2 $2 23. Bxc6 (23. Nxc6+ Bxc6 24. Bxc6 Rc7 $16) 23... Nxc6 24. Nxc6+ Bxc6 25. Rxc6 $18) (22... Rc7 23. Na6+) 23. Na6+ {[%emt 0:00:24]} Kb7 {[%emt 0:00:03]} 24. Qd3 {[%emt 0:02:55][%cal Ob3c5] And now Nbc5+! would win.} Rdd8 $2 {[%emt 0:03:06] [#]} (24... Rcc7 25. g3 Kc8 26. Nxc7 Rxc7 27. Ba6+ Kb8) 25. Na5+ $1 {[%emt 0:01:23][%mdl 512]} bxa5 {[%emt 0:00:06] [#]} 26. Qb3 $1 {[%emt 0:00:02] Weighted Error Value: White=0.13 (very precise) /Black=0.33} 1-0

[Event "97th Argentine Championship 2022"]
[Site "Barichole"]
[Date "2022.12.03"]
[Round "4.4"]
[White "Paveto, Kevin"]
[Black "Pichot, Alan"]
[Result "*"]
[ECO "C55"]
[WhiteElo "2431"]
[BlackElo "2637"]
[Annotator "TA"]
[PlyCount "57"]
[EventDate "2022.12.01"]
[EventType "tourn"]
[EventCountry "ARG"]
[SourceTitle "playchess.com"]
[Source "ChessBase"]
[SourceQuality "1"]
[TimeControl "40/5400+30:1800+30"]

{[%evp 9,57,5,31,19,41,29,33,-43,-38,-62,-61,-75,-61,-64,-85,-107,-83,-83,-107,-93,-62,-93,-64,-76,-68,-83,-72,-79,-61,-157,-167,-155,54,-106,-121,-194,-184,-203,-134,-261,-255,-235,-252,-242,-187,-185,-183,-358,-383,-368]} 1. e4 {[%emt 0:01:56]} e5 {[%emt 0:02:10]} 2. Nf3 {[%emt 0:00:24]} Nc6 {[%emt 0:00:15]} 3. Bc4 {[%emt 0:00:42]} Nf6 {[%emt 0:00:14]} 4. d3 {[%emt 0:00:08]} h6 {[%emt 0:00:11]} 5. Nc3 {[%emt 0:02:15]} d6 {[%emt 0:00:59]} 6. a4 {[%emt 0:02:56] C55: Two Knights: 4 d3, 4 d4 exd4 5 e5 and Max Lange Attack.} g6 {[%emt 0:01:40]} 7. h3 {[%emt 1:25:39]} Bg7 {[%emt 0:00:21] [#]} 8. g4 $146 {[%emt 0:01:10]} (8. Be3 $14) ({Predecessor:} 8. Be3 Na5 9. Ba2 c5 10. Nd5 Nc6 11. c3 Be6 12. Nxf6+ Qxf6 13. a5 Bxa2 14. Rxa2 {0-1 (64) Demchenko,A (2654)-Fedoseev,V (2701) Chess.com INT 2022}) 8... Be6 $15 {[%emt 0:04:25]} 9. g5 {[%emt 0:08:23]} hxg5 {[%emt 0:02:24]} 10. Bxe6 {[%emt 0:03:09]} fxe6 {[%emt 0:00:06]} 11. Bxg5 {[%emt 0:01:14]} Qd7 {[%emt 0:02:10]} 12. Qd2 {[%emt 0:03:20]} O-O-O {[%emt 0:01:31]} 13. O-O-O {[%emt 0:00:49]} Rdf8 {[%emt 0:01:56]} 14. Nh4 {[%emt 1:09:17]} Qf7 {[%emt 0:06:11]} 15. Ng2 {[%emt 0:02:58]} Nh5 {[%emt 0:01:47]} 16. Rdf1 {[%emt 0:01:40]} Nd4 {[%emt 0:09:55][%cal Bc6d4,Bd4f3,Bf3g5][%mdl 32] Strongly threatening ...Nf3.} 17. Kb1 {[%emt 0:20:16]} Nf3 {[%emt 0:15:25]} 18. Qe3 {[%emt 0:01:34]} d5 {[%emt 0:07:34]} 19. Qxa7 {[%emt 0:03:41]} Nxg5 $17 {[%emt 0:00:53]} 20. Nb5 {[%emt 0:00:21] [#]} Qe7 $2 {[%emt 0:01:36]} (20... dxe4 21. dxe4 Nf3 22. Rd1 $18 (22. Qa8+ Kd7 $16)) (20... Nf3 $1 $17 {[%cal Rf3d2] Threatens to win with ...Nd2+.} 21. Qa8+ Kd7 22. Qxb7 Rc8) 21. Ne3 $2 {[%emt 0:01:55] [#]} (21. Qa8+ $2 Kd7 22. Qxb7 Qc5 23. exd5 exd5 $19) (21. c4 $1 $14 {was forced to keep a grip.} dxe4 22. c5 (22. Qa8+ $2 Kd7 $19)) 21... Nf4 $1 {[%emt 0:00:41] aiming for ...Kd7.} (21... dxe4 22. dxe4 (22. Qa8+ $2 Kd7 $19) 22... Kd7 23. Qxb7 $11) 22. exd5 {[%emt 0:02:07]} (22. Qa8+ $2 Kd7 23. Qxb7 Qc5 $19) (22. Rc1 $17 Qd8 23. Ng4) 22... exd5 $19 {[%emt 0:00:35]} (22... Nxd5 23. Rfg1 Bf6 24. Rg4 $15) 23. c4 {[%emt 0:02:02]} ({Don't go for} 23. Qa8+ $2 Kd7 24. Qxb7 Qc5 $19) 23... Rf6 {[%emt 0:06:44] ...Ra6 is the strong threat.} ({Don't take} 23... Rxh3 24. Rxh3 dxc4 25. Rg3 $18) 24. Nxd5 {[%emt 0:06:10]} (24. Qa8+ $17 {was the only defense.} Kd7 25. Qxb7) 24... Nxd5 {[%emt 0:00:16]} 25. cxd5 {[%emt 0:00:12] Black must now prevent Qa8+.} Ra6 {[%emt 0:01:36]} (25... Nxh3 $2 26. Qa8+ Kd7 27. Qxb7 $18) 26. Qe3 {[%emt 0:00:02]} Nf7 {[%emt 0:03:52] Inhibits h4.} ({Less strong is} 26... Rxa4 27. Rc1 Ne6 28. dxe6 $16) 27. Rc1 {[%emt 0:02:15]} Bh6 {[%emt 0:01:03]} (27... Rxa4 $2 28. Rxc7+ Qxc7 29. Nxc7 Kxc7 30. Rc1+ Kb8 31. Qb6 $18) 28. Qg3 {[%emt 0:02:10]} (28. Qc5 Qxc5 29. Rxc5) 28... Bxc1 {[%emt 0:00:40]} 29. Rxc1 {[%emt 0:00:02] Weighted Error Value: White=0.41/Black=0.25 (precise)} *